fUST/lending_fUST_20250301
["ID","MTS","AMOUNT","RATE_DAILY","PERIOD"]
[354905338,1740809442687,-500.0,0.00038896,2]
[354905339,1740809442696,-632.61,0.00038896,2]
[354905340,1740809442706,-622.83,0.00038896,2]
[354905341,1740809442715,-566.15,0.00038896,2]
[354905342,1740809442725,-500.0,0.00038896,2]
[354905343,1740809442734,-736.42,0.00038896,2]
[354905344,1740809442743,-1369.59,0.00038896,2]
[354905345,1740809442753,-500.0,0.00038896,2]
[354905346,1740809442762,-500.0,0.00038896,2]
[354905347,1740809442771,-500.0,0.00038896,2]
[354905348,1740809442781,-500.0,0.00038896,2]
[354905349,1740809442791,-2790.7,0.00038896,2]
[354905350,1740809442800,-10616.35,0.00038896,2]
[354905351,1740809442810,-989.89,0.00038896,2]
[354905352,1740809442819,-1044.97,0.00038896,2]
[354905353,1740809442830,-500.0,0.00038896,2]
[354905354,1740809442841,-151.0,0.00038896,14]
[354905355,1740809442851,-151.0,0.00038896,14]
[354905356,1740809442862,-245.294965,0.00038896,14]
[354905357,1740809442873,-340.317342,0.00038896,14]
[354905358,1740809442883,-340.317342,0.00038896,14]
[354905359,1740809442894,-203.412894,0.00038896,14]
[354905360,1740809442903,-203.412894,0.00038896,14]
[354905361,1740809442912,-187.77379486,0.00038896,2]
[354905362,1740809442921,-500.0,0.00038896,2]
[354905363,1740809442932,-340.317342,0.00038896,14]
[354905364,1740809442941,-500.0,0.00038896,2]
[354905365,1740809442951,-1669.49,0.00038896,2]
[354905366,1740809442960,-340.317342,0.00038896,14]
[354905367,1740809442970,-203.412894,0.00038896,14]
[354905368,1740809442979,-203.412894,0.00038896,14]
[354905369,1740809442989,-561.92,0.00038896,2]
[354905370,1740809442999,-500.0,0.00038896,2]
[354905371,1740809443009,-500.0,0.00038896,2]
[354905372,1740809443018,-500.0,0.00038896,2]
[354905373,1740809443028,-500.0,0.00038896,2]
[354905374,1740809443037,-500.0,0.00038896,2]
[354905375,1740809443047,-500.0,0.00038896,2]
[354905376,1740809443056,-500.0,0.00038896,2]
[354905377,1740809443065,-500.0,0.00038896,2]
[354905378,1740809443075,-502.95938668,0.00038896,2]
[354905379,1740809443084,-500.0,0.00038896,2]
[354905380,1740809443093,-1642.17,0.00038896,2]
[354905381,1740809443103,-4548.05,0.00038896,2]
[354905382,1740809443113,-151.0,0.00038896,14]
[354905383,1740809443122,-151.0,0.00038896,14]
[354905384,1740809443132,-500.0,0.00038896,2]
[354905385,1740809443142,-151.0,0.00038896,14]
[354905386,1740809443151,-222000.0,0.00038897,2]
[354905387,1740809443161,-151.0,0.00038897,2]
[354905388,1740809443172,-151.195629,0.00038897,2]
[354905389,1740809443181,-151.0,0.00038897,7]
[354905390,1740809443191,-724.753343,0.00038897,14]
[354905391,1740809443205,-724.753343,0.00038897,14]
[354905392,1740809443215,-1763.506796,0.00038897,14]
[354905393,1740809443224,-1763.506796,0.00038897,14]
[354905394,1740809443233,-161.969022,0.00038897,14]
[354905395,1740809443244,-161.969022,0.00038897,14]
[354905396,1740809443254,-590.158248,0.00038897,14]
[354905397,1740809443263,-590.158248,0.00038897,14]
[354905398,1740809443274,-151.0,0.00038897,14]
[354905399,1740809443285,-181.434084,0.00038897,14]
[354905401,1740809443295,-157.251157,0.00038897,14]
[354905403,1740809443304,-157.251157,0.00038897,14]
[354905405,1740809443314,-181.434084,0.00038897,14]
[354905407,1740809443323,-231.467165,0.00038897,14]
[354905409,1740809443332,-231.467165,0.00038897,14]
[354905412,1740809443341,-2500.008198,0.00038897,14]
[354905413,1740809443351,-2500.008198,0.00038897,14]
[354905415,1740809443360,-340.317342,0.00038897,14]
[354905418,1740809443370,-203.412894,0.00038897,14]
[354905420,1740809443379,-340.317342,0.00038897,14]
[354905422,1740809443389,-203.412894,0.00038897,14]
[354905424,1740809443399,-151.0,0.00038897,14]
[354905425,1740809443408,-3000.0,0.00038898,2]
[354905426,1740809443418,-151.0,0.000389,18]
[354905427,1740809443428,-151.0,0.000389,20]
[354905428,1740809443438,-7109.19,0.000389,30]
[354905429,1740809443448,-500.0,0.00038972,2]
[354905430,1740809443457,-718.88,0.00038972,2]
[354905431,1740809443467,-513.5816169,0.00038973,5]
[354905432,1740809443477,-500.0,0.00038973,5]
[354905433,1740809443486,-500.0,0.00038973,5]
[354905434,1740809443496,-500.0,0.00038973,5]
[354905435,1740809443505,-500.0,0.00038973,5]
[354905436,1740809443515,-500.0,0.00038973,5]
[354905437,1740809443524,-500.0,0.00038973,5]
[354905438,1740809443534,-506.31835063,0.00038973,5]
[354905439,1740809443543,-500.0,0.00038973,5]
[354905440,1740809443552,-500.0,0.00038973,5]
[354905441,1740809443562,-500.0,0.00038973,5]
[354905442,1740809443571,-163.75696149,0.00038973,5]
[354905443,1740809443581,-391.67349365,0.00038973,5]
[354905444,1740809443591,-500.0,0.00038973,5]
[354905445,1740809443600,-500.0,0.00038973,2]
[354905446,1740809443611,-500.0,0.00038973,5]
[354905447,1740809443620,-500.0,0.00038973,5]
[354905448,1740809443630,-501.75957197,0.00038973,2]
[354905449,1740809443639,-500.0,0.00038973,5]
[354905450,1740809443649,-500.0,0.00038973,5]
[354905451,1740809443659,-500.0,0.00038973,5]
[354905452,1740809443669,-300.20962099,0.00038973,5]
[354905453,1740809443679,-500.0,0.00038973,5]
[354905454,1740809443689,-500.0,0.00038973,5]
[354905455,1740809443699,-500.0,0.00038973,5]
[354905456,1740809443709,-511.26437518,0.00038973,5]
[354905457,1740809443718,-501.82626897,0.00038973,5]
[354905458,1740809443728,-162.65928204,0.00038973,5]
[354905459,1740809443738,-601.26755221,0.00038973,5]
[354905460,1740809443748,-500.0,0.00038973,5]
[354905461,1740809443758,-500.0,0.00038973,2]
[354905462,1740809443767,-166.48973665,0.00038973,5]
[354905463,1740809443778,-500.0,0.00038973,5]
[354905464,1740809443787,-500.0,0.00038973,5]
[354905465,1740809443797,-500.0,0.00038973,5]
[354905466,1740809443807,-500.0,0.00038973,5]
[354905467,1740809443817,-500.0,0.00038973,5]
[354905468,1740809443827,-503.42715993,0.00038973,5]
[354905469,1740809443837,-500.0,0.00038973,5]
[354905470,1740809443847,-500.0,0.00038973,5]
[354905471,1740809443857,-500.0,0.00038973,5]
[354905472,1740809443867,-500.0,0.00038973,5]
[354905473,1740809443877,-500.0,0.00038973,5]
[354905474,1740809443887,-500.64829221,0.00038973,5]
[354905475,1740809443896,-500.0,0.00038973,5]
[354905476,1740809443907,-367.80974713,0.00038973,5]
[354905477,1740809443916,-150.99911135,0.00038973,5]
[354905478,1740809443925,-500.0,0.00038973,5]
[354905479,1740809443935,-500.0,0.00038973,5]
[354905480,1740809443945,-500.0,0.00038973,5]
[354905481,1740809443955,-500.0,0.00038973,5]
[354905482,1740809443965,-500.0,0.00038973,5]
[354905483,1740809443975,-151.0,0.00038974,2]
[354905484,1740809443985,-500.0,0.00038974,2]
[354905485,1740809443995,-2425.0,0.0003899,2]
[354905486,1740809444005,-5000.0,0.00038993,120]
[354905487,1740809444015,-5000.0,0.00038994,120]
[354905488,1740809444025,-5000.0,0.00038995,120]
[354905489,1740809444034,-5000.0,0.00038995,120]
[354905490,1740809444046,-5000.0,0.00038995,120]
[354905491,1740809444060,-551.2,0.00038995,2]
[354905492,1740809444070,-1842.65,0.00038995,2]
[354905493,1740809444080,-500.0,0.00038995,2]
[354905494,1740809444090,-593.07,0.00038995,2]
[354905495,1740809444100,-1227.67,0.00038995,2]
[354905496,1740809444110,-1316.38,0.00038995,2]
[354905497,1740809444120,-500.0,0.00038995,2]
[354905498,1740809444131,-620.95,0.00038995,2]
[354905499,1740809444141,-688.37,0.00038995,2]
[354905500,1740809444151,-1690.93,0.00038995,2]
[354905501,1740809444160,-739.78,0.00038995,2]
[354905502,1740809444171,-500.0,0.00038995,2]
[354905503,1740809444181,-827.25,0.00038995,2]
[354905504,1740809444191,-1490.38,0.00038995,2]
[354905505,1740809444203,-500.0,0.00038995,2]
[354905506,1740809444214,-500.0,0.00038995,2]
[354905507,1740809444224,-1666.27,0.00038995,2]
[354905508,1740809444234,-500.0,0.00038995,2]
[354905509,1740809444244,-500.0,0.00038995,2]
[354905510,1740809444255,-500.0,0.00038995,2]
[354905511,1740809444266,-1188.62,0.00038995,2]
[354905512,1740809444276,-660.03,0.00038995,2]
[354905513,1740809444285,-500.0,0.00038995,2]
[354905514,1740809444295,-617.78,0.00038995,2]
[354905515,1740809444305,-500.0,0.00038995,2]
[354905516,1740809444315,-500.0,0.00038995,2]
[354905517,1740809444325,-612.85,0.00038995,2]
[354905518,1740809444335,-500.0,0.00038995,2]
[354905519,1740809444345,-511.3805039,0.00038995,2]
[354905520,1740809444354,-1000.0,0.00038995,60]
[354905521,1740809444364,-500.0,0.00038995,2]
[354905522,1740809444374,-500.0,0.00038995,2]
[354905523,1740809444384,-1803.32,0.00038995,2]
[354905524,1740809444394,-1338.14,0.00038995,2]
[354905525,1740809444404,-500.0,0.00038995,2]
[354905526,1740809444414,-989.21,0.00038995,2]
[354905527,1740809444423,-500.0,0.00038995,2]
[354905528,1740809444433,-500.0,0.00038995,2]
[354905529,1740809444443,-500.0,0.00038995,2]
[354905530,1740809444453,-500.0,0.00038995,2]
[354905531,1740809444463,-744.31,0.00038995,2]
[354905532,1740809444473,-500.0,0.00038995,2]
[354905533,1740809444483,-500.0,0.00038995,2]
[354905534,1740809444492,-500.0,0.00038995,2]
[354905535,1740809444502,-1350.13,0.00038995,2]
[354905536,1740809444512,-500.0,0.00038995,2]
[354905537,1740809444521,-500.0,0.00038995,2]
[354905538,1740809444532,-2346.67,0.00038995,2]
[354905539,1740809444541,-2262.68,0.00038995,2]
[354905540,1740809444552,-1408.99,0.00038995,2]
[354905541,1740809444562,-687.26,0.00038995,2]
[354905542,1740809444572,-500.0,0.00038995,2]
[354905543,1740809444582,-1094.23,0.00038995,2]
[354905544,1740809444592,-500.0,0.00038995,2]
[354905545,1740809444601,-500.0,0.00038995,2]
[354905546,1740809444611,-955.83,0.00038995,2]
[354905547,1740809444621,-500.0,0.00038995,2]
[354905548,1740809444630,-872.07,0.00038995,2]
[354905549,1740809444640,-500.0,0.00038995,2]
[354905550,1740809444650,-4042.91,0.00038995,2]
[354905551,1740809444660,-573.04,0.00038995,2]
[354905552,1740809444670,-500.0,0.00038995,2]
[354905553,1740809444680,-783.18,0.00038995,2]
[354905554,1740809444689,-2401.35,0.00038995,2]
[354905555,1740809444700,-2773.31,0.00038995,2]
[354905556,1740809444710,-747.38,0.00038995,2]
[354905557,1740809444720,-500.0,0.00038995,2]
[354905558,1740809444731,-500.0,0.00038995,2]
[354905559,1740809444742,-500.0,0.00038995,2]
[354905560,1740809444752,-500.0,0.00038995,2]
[354905561,1740809444764,-500.0,0.00038995,2]
[354905562,1740809444775,-505.9774851,0.00038995,2]
[354905563,1740809444785,-500.0,0.00038995,2]
[354905564,1740809444795,-658.14,0.00038995,2]
[354905565,1740809444805,-500.0,0.00038995,2]
[354905566,1740809444816,-1422.35,0.00038995,2]
[354905567,1740809444826,-502.83,0.00038995,2]
[354905568,1740809444836,-500.0,0.00038995,2]
[354905569,1740809444847,-177.918737,0.00038995,14]
[354905570,1740809444857,-160.0,0.00038995,30]
[354905571,1740809444867,-164.37568423,0.00038995,30]
[354905572,1740809444878,-5000.0,0.00038996,120]
[354905573,1740809444889,-560.97,0.00038996,2]
[354905574,1740809444899,-500.0,0.00038996,2]
[354905575,1740809444909,-500.0,0.00038996,2]
[354905576,1740809444920,-506.23266891,0.00038996,2]
[354905577,1740809444930,-500.0,0.00038996,2]
[354905578,1740809444940,-580.95329574,0.00038996,2]
[354905579,1740809444951,-500.0,0.00038996,2]
[354905580,1740809444962,-500.0,0.00038996,2]
[354905581,1740809444972,-500.0,0.00038996,2]
[354905582,1740809444983,-500.0,0.00038996,2]
[354905583,1740809444993,-500.0,0.00038996,2]
[354905584,1740809445004,-500.0,0.00038996,2]
[354905585,1740809445015,-500.0,0.00038996,2]
[354905586,1740809445026,-564.98,0.00038996,2]
[354905587,1740809445036,-795.51,0.00038996,2]
[354905588,1740809445047,-500.0,0.00038996,2]
[354905589,1740809445058,-507.58386937,0.00038996,2]
[354905590,1740809445068,-500.0,0.00038996,2]
[354905591,1740809445079,-500.0,0.00038996,2]
[354905592,1740809445089,-500.0,0.00038996,2]
[354905593,1740809445099,-890.94,0.00038996,2]
[354905594,1740809445110,-500.0,0.00038996,2]
[354905595,1740809445121,-500.0,0.00038996,2]
[354905596,1740809445131,-500.0,0.00038996,2]
[354905597,1740809445142,-500.0,0.00038996,2]
[354905598,1740809445153,-500.0,0.00038996,2]
[354905599,1740809445164,-500.0,0.00038996,2]
[354905600,1740809445175,-500.0,0.00038996,2]
[354905601,1740809445185,-500.0,0.00038996,2]
[354905602,1740809445197,-493.2916647,0.00038996,2]
[354905603,1740809445211,-500.0,0.00038996,2]
[354905604,1740809445222,-500.0,0.00038996,2]
[354905605,1740809445233,-500.0,0.00038996,2]
[354905606,1740809445243,-500.0,0.00038996,2]
[354905607,1740809445255,-500.0,0.00038996,2]
[354905608,1740809445266,-500.0,0.00038996,2]
[354905609,1740809445276,-500.0,0.00038996,2]
[354905610,1740809445290,-500.0,0.00038996,2]
[354905611,1740809445301,-500.0,0.00038996,2]
[354905612,1740809445311,-500.0,0.00038996,2]
[354905613,1740809445321,-64727.77132062,0.00038996,5]
[354905614,1740809445332,-500.0,0.00038996,2]
[354905615,1740809445343,-500.0,0.00038996,2]
[354905616,1740809445353,-338.76712693,0.00038996,2]
[354905617,1740809445363,-673.59,0.00038996,2]
[354905618,1740809445373,-500.0,0.00038996,2]
[354905619,1740809445383,-500.0,0.00038996,2]
[354905620,1740809445393,-1106.77,0.00038996,2]
[354905621,1740809445403,-500.0,0.00038996,2]
[354905622,1740809445414,-500.0,0.00038996,2]
[354905623,1740809445424,-500.0,0.00038996,2]
[354905624,1740809445435,-1059.77,0.00038996,2]
[354905625,1740809445445,-500.0,0.00038996,2]
[354905626,1740809445456,-500.0,0.00038996,2]
[354905627,1740809445467,-587.3,0.00038996,2]
[354905628,1740809445477,-500.0,0.00038996,2]
[354905629,1740809445487,-500.0,0.00038996,2]
[354905630,1740809445497,-500.0,0.00038996,2]
[354905631,1740809445507,-500.0,0.00038996,2]
[354905632,1740809445517,-1205.14,0.00038996,2]
[354905633,1740809445527,-500.0,0.00038996,2]
[354905634,1740809445537,-500.0,0.00038996,2]
[354905635,1740809445547,-500.0,0.00038996,2]
[354905636,1740809445557,-500.0,0.00038996,2]
[354905637,1740809445567,-500.0,0.00038996,2]
[354905638,1740809445577,-500.0,0.00038996,2]
[354905639,1740809445588,-1728.23,0.00038996,2]
[354905640,1740809445599,-500.0,0.00038996,2]
[354905641,1740809445608,-500.0,0.00038996,2]
[354905642,1740809445619,-500.0,0.00038996,2]
[354905643,1740809445629,-500.0,0.00038996,2]
[354905644,1740809445639,-626.75,0.00038996,2]
[354905645,1740809445650,-1480.65,0.00038996,2]
[354905646,1740809445661,-505.41560755,0.00038996,2]
[354905647,1740809445671,-500.0,0.00038996,2]
[354905648,1740809445681,-500.0,0.00038996,2]
[354905649,1740809445692,-500.0,0.00038996,2]
[354905650,1740809445703,-500.0,0.00038996,2]
[354905651,1740809445714,-505.1786092,0.00038996,2]
[354905652,1740809445725,-500.0,0.00038996,2]
[354905653,1740809445736,-500.0,0.00038996,2]
[354905654,1740809445747,-500.0,0.00038996,2]
[354905655,1740809445758,-500.0,0.00038996,2]
[354905656,1740809445768,-500.0,0.00038996,2]
[354905657,1740809445779,-500.0,0.00038996,2]
[354905658,1740809445789,-500.0,0.00038996,2]
[354905659,1740809445800,-500.0,0.00038996,2]
[354905660,1740809445811,-500.0,0.00038996,2]
[354905661,1740809445822,-500.0,0.00038996,2]
[354905662,1740809445831,-500.0,0.00038996,2]
[354905663,1740809445841,-460.996841,0.00038996,2]
[354905665,1740809445851,-500.0,0.00038996,2]
[354905667,1740809445861,-500.0,0.00038996,2]
[354905669,1740809445872,-500.0,0.00038996,2]
[354905670,1740809445883,-508.39751474,0.00038996,2]
[354905672,1740809445893,-500.0,0.00038996,2]
[354905674,1740809445902,-500.0,0.00038996,2]
[354905676,1740809445912,-500.0,0.00038996,2]
[354905678,1740809445922,-500.0,0.00038996,2]
[354905680,1740809445933,-504.48,0.00038996,2]
[354905682,1740809445944,-500.0,0.00038996,2]
[354905684,1740809445954,-500.0,0.00038996,2]
[354905686,1740809445965,-500.0,0.00038996,2]
[354905688,1740809445975,-500.0,0.00038996,2]
[354905690,1740809445986,-500.0,0.00038996,2]
[354905692,1740809445996,-654.1,0.00038996,120]
[354905694,1740809446007,-500.0,0.00038996,2]
[354905696,1740809446018,-500.0,0.00038996,2]
[354905698,1740809446028,-500.0,0.00038996,2]
[354905701,1740809446039,-500.0,0.00038996,2]
[354905703,1740809446049,-500.0,0.00038996,2]
[354905705,1740809446059,-500.0,0.00038996,2]
[354905707,1740809446069,-500.0,0.00038996,2]
[354905709,1740809446080,-574.36,0.00038996,2]
[354905711,1740809446091,-500.0,0.00038996,2]
[354905713,1740809446101,-1240.35,0.00038996,2]
[354905715,1740809446111,-500.0,0.00038996,2]
[354905716,1740809446122,-494.63397292,0.00038996,2]
[354905718,1740809446133,-500.0,0.00038996,2]
[354905720,1740809446144,-500.0,0.00038996,2]
[354905721,1740809446153,-2219.82,0.00038996,2]
[354905722,1740809446164,-500.0,0.00038996,2]
[354905723,1740809446176,-500.0,0.00038996,2]
[354905724,1740809446186,-500.0,0.00038996,2]
[354905726,1740809446196,-673.094461,0.00038996,14]
[354905728,1740809446210,-500.0,0.00038996,2]
[354905730,1740809446220,-673.094461,0.00038996,14]
[354905732,1740809446231,-500.0,0.00038996,2]
[354905734,1740809446241,-543.52,0.00038996,2]
[354905736,1740809446252,-500.0,0.00038996,2]
[354905738,1740809446262,-500.0,0.00038996,2]
[354905739,1740809446273,-500.0,0.00038996,2]
[354905740,1740809446289,-2338.51,0.00038996,2]
[354905741,1740809446299,-500.0,0.00038996,2]
[354905742,1740809446311,-500.0,0.00038996,2]
[354905743,1740809446321,-151.0,0.00038996,14]
[354905744,1740809446331,-151.0,0.00038996,14]
[354905745,1740809446341,-500.0,0.00038996,2]
[354905746,1740809446351,-500.0,0.00038996,2]
[354905747,1740809446362,-500.0,0.00038996,2]
[354905748,1740809446372,-500.0,0.00038996,2]
[354905749,1740809446382,-500.0,0.00038996,2]
[354905750,1740809446392,-151.0,0.00038996,14]
[354905751,1740809446403,-500.0,0.00038996,2]
[354905752,1740809446413,-500.0,0.00038996,2]
[354905753,1740809446423,-500.0,0.00038996,2]
[354905754,1740809446435,-500.0,0.00038996,2]
[354905755,1740809446445,-500.0,0.00038996,2]
[354905756,1740809446455,-1510.0,0.00038996,14]
[354905757,1740809446465,-1510.0,0.00038996,14]
[354905758,1740809446475,-1510.0,0.00038996,14]
[354905759,1740809446485,-830.53,0.00038996,2]
[354905760,1740809446495,-500.0,0.00038996,2]
[354905761,1740809446505,-500.0,0.00038996,2]
[354905762,1740809446515,-1510.0,0.00038996,14]
[354905763,1740809446525,-1510.0,0.00038996,14]
[354905764,1740809446535,-1510.0,0.00038996,14]
[354905765,1740809446545,-500.0,0.00038996,2]
[354905766,1740809446555,-500.0,0.00038996,2]
[354905767,1740809446565,-500.0,0.00038996,2]
[354905768,1740809446575,-500.0,0.00038996,2]
[354905769,1740809446586,-500.0,0.00038996,2]
[354905770,1740809446595,-508.55729794,0.00038996,2]
[354905771,1740809446606,-549.37,0.00038996,2]
[354905772,1740809446615,-500.0,0.00038996,2]
[354905773,1740809446625,-500.0,0.00038996,2]
[354905774,1740809446636,-758.81,0.00038996,2]
[354905775,1740809446646,-439.01498,0.00038996,14]
[354905776,1740809446656,-151.0,0.00038996,14]
[354905777,1740809446666,-151.0,0.00038996,14]
[354905778,1740809446676,-1608.45,0.00038996,2]
[354905779,1740809446686,-439.01498,0.00038996,14]
[354905780,1740809446696,-1204.36,0.00038996,2]
[354905781,1740809446706,-548.77044621,0.00038996,2]
[354905782,1740809446715,-500.0,0.00038996,2]
[354905783,1740809446727,-502.9266679,0.00038996,2]
[354905784,1740809446737,-500.0,0.00038996,2]
[354905785,1740809446747,-500.0,0.00038996,2]
[354905786,1740809446758,-500.0,0.00038996,2]
[354905787,1740809446768,-500.0,0.00038996,2]
[354905788,1740809446777,-500.0,0.00038996,2]
[354905789,1740809446787,-856.85,0.00038996,2]
[354905790,1740809446798,-1037.35,0.00038996,2]
[354905791,1740809446808,-500.0,0.00038996,2]
[354905792,1740809446819,-503.7066998,0.00038996,2]
[354905793,1740809446829,-500.09789776,0.00038996,2]
[354905794,1740809446840,-500.0,0.00038996,2]
[354905795,1740809446850,-681.93,0.00038996,2]
[354905796,1740809446860,-1000.0,0.00038996,2]
[354905797,1740809446870,-500.0,0.00038996,2]
[354905798,1740809446880,-500.0,0.00038996,2]
[354905799,1740809446891,-708.96,0.00038996,2]
[354905800,1740809446901,-500.0,0.00038996,2]
[354905801,1740809446911,-191.476866,0.00038996,14]
[354905802,1740809446922,-191.476866,0.00038996,14]
[354905803,1740809446932,-191.476866,0.00038996,14]
[354905804,1740809446943,-500.0,0.00038996,2]
[354905805,1740809446953,-324.42375,0.00038996,14]
[354905806,1740809446963,-500.0,0.00038996,2]
[354905807,1740809446974,-500.0,0.00038996,30]
[354905808,1740809446984,-500.0,0.00038996,30]
[354905809,1740809446995,-500.0,0.00038996,30]
[354905810,1740809447006,-500.0,0.00038996,30]
[354905811,1740809447016,-500.0,0.00038996,30]
[354905812,1740809447027,-500.0,0.00038996,2]
[354905813,1740809447037,-191.476866,0.00038996,14]
[354905814,1740809447048,-500.0,0.00038996,30]
[354905815,1740809447058,-500.0,0.00038996,2]
[354905816,1740809447069,-191.476866,0.00038996,14]
[354905817,1740809447080,-500.0,0.00038996,30]
[354905818,1740809447091,-191.476866,0.00038996,14]
[354905819,1740809447103,-500.0,0.00038996,30]
[354905820,1740809447442,-500.0,0.00038996,30]
[354905821,1740809447470,-324.42375,0.00038996,14]
[354905822,1740809447480,-500.0,0.00038996,30]
[354905823,1740809447490,-500.0,0.00038996,30]
[354905824,1740809447501,-546.636168,0.00038996,30]
[354905825,1740809447510,-500.0,0.00038996,2]
[354905826,1740809447520,-500.0,0.00038996,2]
[354905827,1740809447530,-500.0,0.00038996,2]
[354905828,1740809447540,-500.0,0.00038996,2]
[354905829,1740809447550,-500.0,0.00038996,2]
[354905830,1740809447560,-500.0,0.00038996,2]
[354905831,1740809447571,-500.0,0.00038996,2]
[354905832,1740809447581,-503.66122976,0.00038996,2]
[354905833,1740809447591,-927.15,0.00038996,2]
[354905834,1740809447601,-151.0,0.00038996,14]
[354905835,1740809447612,-500.0,0.00038996,2]
[354905836,1740809447622,-283.187842,0.00038996,14]
[354905837,1740809447632,-500.0,0.00038996,2]
[354905838,1740809447643,-1404.477227,0.00038996,14]
[354905839,1740809447653,-1404.477227,0.00038996,14]
[354905840,1740809447663,-1404.477227,0.00038996,14]
[354905841,1740809447673,-506.57766474,0.00038996,2]
[354905842,1740809447683,-1404.477227,0.00038996,14]
[354905843,1740809447693,-500.0,0.00038996,2]
[354905844,1740809447704,-1404.477227,0.00038996,14]
[354905845,1740809447714,-1404.477227,0.00038996,14]
[354905846,1740809447727,-1404.477227,0.00038996,14]
[354905847,1740809447736,-1404.477227,0.00038996,14]
[354905848,1740809447746,-500.0,0.00038996,2]
[354905849,1740809447756,-300.0,0.00038996,120]
[354905850,1740809447766,-500.0,0.00038996,2]
[354905851,1740809447776,-500.0,0.00038996,2]
[354905852,1740809447786,-718.88,0.00038996,2]
[354905853,1740809447795,-718.88,0.00038996,2]
[354905854,1740809447805,-500.0,0.00038996,2]
[354905855,1740809447815,-500.0,0.00038996,2]
[354905856,1740809447825,-500.0,0.00038996,2]
[354905857,1740809447835,-2293.38414,0.00038996,14]
[354905858,1740809447845,-2293.38414,0.00038996,14]
[354905859,1740809447855,-500.0,0.00038996,2]
[354905860,1740809447866,-2293.38414,0.00038996,14]
[354905861,1740809447876,-2293.38414,0.00038996,14]
[354905862,1740809447886,-500.0,0.00038996,2]
[354905863,1740809447896,-2293.38414,0.00038996,14]
[354905864,1740809447907,-2293.38414,0.00038996,14]
[354905865,1740809447917,-2293.38414,0.00038996,14]
[354905866,1740809447929,-2293.38414,0.00038996,14]
[354905867,1740809447940,-500.0,0.00038996,2]
[354905868,1740809447950,-151.0,0.00038996,14]
[354905869,1740809447960,-151.0,0.00038996,14]
[354905870,1740809447970,-152.943537,0.00038996,14]
[354905871,1740809447980,-500.0,0.00038996,2]
[354905872,1740809447990,-500.0,0.00038996,2]
[354905873,1740809448000,-500.0,0.00038996,2]
[354905874,1740809448010,-151.0,0.00038996,14]
[354905875,1740809448020,-151.0,0.00038996,14]
[354905876,1740809448031,-500.0,0.00038996,2]
[354905877,1740809448041,-151.0,0.00038996,14]
[354905878,1740809448052,-153.496838,0.00038996,14]
[354905879,1740809448062,-500.0,0.00038996,2]
[354905880,1740809448073,-500.0,0.00038996,2]
[354905881,1740809448083,-500.0,0.00038996,2]
[354905882,1740809448093,-500.0,0.00038996,2]
[354905883,1740809448104,-500.0,0.00038996,2]
[354905884,1740809448114,-500.0,0.00038996,2]
[354905885,1740809448124,-500.0,0.00038996,2]